[Event "Late-Titled-Tuesday-Blitz-October-10-2023"]
[Site "Chess.com"]
[Date "2023.10.10"]
[Round "9"]
[White "Msb2"]
[Black "Firouzja2003"]
[Result "1-0"]
[WhiteElo "3058"]
[BlackElo "3065"]
[TimeControl "180+1"]
[EndTime "15:38:12 PDT"]
[Termination "Msb2 won by resignation"]

1. d4 {[%clk 0:03:00.9]} 1... Nf6 {[%clk 0:02:57.4]} 2. c4 {[%clk 0:03:01.4]}
2... g6 {[%clk 0:02:58.1]} 3. Nc3 {[%clk 0:03:01.9]} 3... Bg7 {[%clk 0:02:58.8]}
4. e4 {[%clk 0:03:02.5]} 4... d6 {[%clk 0:02:59.5]} 5. Nf3 {[%clk 0:03:03.3]}
5... O-O {[%clk 0:02:58.7]} 6. Be2 {[%clk 0:03:04]} 6... e5 {[%clk 0:02:59.2]}
7. Be3 {[%clk 0:03:04.7]} 7... Ng4 {[%clk 0:02:43.6]} 8. Bg5 {[%clk 0:03:04.4]}
8... f6 {[%clk 0:02:44.2]} 9. Bh4 {[%clk 0:03:05.1]} 9... Nc6 {[%clk 0:02:38.5]}
10. d5 {[%clk 0:03:05.5]} 10... Ne7 {[%clk 0:02:37]} 11. Nd2 {[%clk 0:03:06.2]}
11... h5 {[%clk 0:02:34.3]} 12. h3 {[%clk 0:03:03]} 12... Nh6 {[%clk 0:02:34.4]}
13. f3 {[%clk 0:03:01.8]} 13... Nf7 {[%clk 0:02:12.5]} 14. b4 {[%clk 0:03:00.2]}
14... f5 {[%clk 0:01:43.8]} 15. c5 {[%clk 0:02:56.1]} 15... g5 {[%clk
0:01:43.7]} 16. Bf2 {[%clk 0:02:56.6]} 16... f4 {[%clk 0:01:44]} 17. Nc4 {[%clk
0:02:56.2]} 17... Ng6 {[%clk 0:01:43.1]} 18. cxd6 {[%clk 0:02:55.5]} 18... cxd6
{[%clk 0:01:42.9]} 19. Nb5 {[%clk 0:02:56.2]} 19... Nh4 {[%clk 0:01:25.2]} 20.
O-O {[%clk 0:02:47]} 20... Nxg2 {[%clk 0:01:01.3]} 21. Kxg2 {[%clk 0:02:31.2]}
21... Qd7 {[%clk 0:00:51.1]} 22. Rh1 {[%clk 0:02:31.4]} 22... g4 {[%clk
0:00:20.5]} 23. hxg4 {[%clk 0:02:15.2]} 23... hxg4 {[%clk 0:00:20.9]} 24. Nxa7
{[%clk 0:02:15.6]} 24... Rxa7 {[%clk 0:00:17.4]} 25. Nb6 {[%clk 0:02:05.9]}
25... gxf3+ {[%clk 0:00:13.4]} 26. Bxf3 {[%clk 0:02:04.7]} 26... Qd8 {[%clk
0:00:06.5]} 27. Nxc8 {[%clk 0:02:04.6]} 27... Ra3 {[%clk 0:00:07.2]} 28. Bg4
{[%clk 0:01:52.2]} 28... Ng5 {[%clk 0:00:05.5]} 29. Bh4 {[%clk 0:01:48.4]} 29...
f3+ {[%clk 0:00:05.8]} 30. Kf1 {[%clk 0:01:49]} 30... Rf4 {[%clk 0:00:05.1]} 31.
Be6+ {[%clk 0:01:43.4]} 31... Kf8 {[%clk 0:00:05.3]} 32. Qc1 {[%clk 0:01:21.3]}
32... Rd3 {[%clk 0:00:03.5]} 33. Nxd6 {[%clk 0:01:21.6]} 33... Qxd6 {[%clk
0:00:02.9]} 34. Qc8+ {[%clk 0:01:21.7]} 34... Ke7 {[%clk 0:00:02.2]} 35. Bxg5+
{[%clk 0:01:22.4]} 35... Rf6 {[%clk 0:00:02.4]} 1-0

[Event "Late-Titled-Tuesday-Blitz-October-10-2023"]
[Site "Chess.com"]
[Date "2023.10.10"]
[Round "9"]
[White "flukeyNZ"]
[Black "canary2016"]
[Result "0-1"]
[WhiteElo "2236"]
[BlackElo "2187"]
[TimeControl "180+1"]
[EndTime "15:38:18 PDT"]
[Termination "canary2016 won by resignation"]

1. d4 {[%clk 0:03:00.9]} 1... Nf6 {[%clk 0:02:55.8]} 2. c4 {[%clk 0:02:59.2]}
2... e6 {[%clk 0:02:55.6]} 3. Nf3 {[%clk 0:02:58.3]} 3... d5 {[%clk 0:02:52.7]}
4. g4 {[%clk 0:02:57.1]} 4... Nxg4 {[%clk 0:02:47.6]} 5. Nc3 {[%clk 0:02:42.8]}
5... Nf6 {[%clk 0:02:45.5]} 6. Bg5 {[%clk 0:02:31.2]} 6... Be7 {[%clk
0:02:42.6]} 7. e3 {[%clk 0:02:30.5]} 7... O-O {[%clk 0:02:40.5]} 8. Bd3 {[%clk
0:02:29.6]} 8... h6 {[%clk 0:02:24.8]} 9. h4 {[%clk 0:02:26.7]} 9... dxc4 {[%clk
0:02:20.6]} 10. Bxc4 {[%clk 0:02:25]} 10... c5 {[%clk 0:02:20.6]} 11. Qe2 {[%clk
0:02:15.9]} 11... cxd4 {[%clk 0:02:13.8]} 12. O-O-O {[%clk 0:02:15.2]} 12... Qa5
{[%clk 0:02:10.3]} 13. exd4 {[%clk 0:02:13.3]} 13... Nc6 {[%clk 0:02:08.8]} 14.
Kb1 {[%clk 0:02:11.8]} 14... Nb4 {[%clk 0:02:07.5]} 15. Ne5 {[%clk 0:02:04.7]}
15... a6 {[%clk 0:01:46]} 16. Rhg1 {[%clk 0:02:00.6]} 16... Kh8 {[%clk
0:01:39.2]} 17. Qd2 {[%clk 0:01:44.2]} 17... hxg5 {[%clk 0:01:21.4]} 18. hxg5
{[%clk 0:01:42.2]} 18... Nfd5 {[%clk 0:01:12.7]} 19. Nxd5 {[%clk 0:01:20.5]}
19... exd5 {[%clk 0:01:09.6]} 20. Bb3 {[%clk 0:00:46.3]} 20... Bf5+ {[%clk
0:01:08.1]} 21. Ka1 {[%clk 0:00:46.5]} 21... Bc2 {[%clk 0:00:58]} 22. a3 {[%clk
0:00:08.7]} 22... Bxb3 {[%clk 0:00:53.8]} 23. Rde1 {[%clk 0:00:07.4]} 23... Nc2+
{[%clk 0:00:50.4]} 0-1

[Event "Late-Titled-Tuesday-Blitz-October-10-2023"]
[Site "Chess.com"]
[Date "2023.10.10"]
[Round "9"]
[White "protectiago"]
[Black "annacramling"]
[Result "0-1"]
[WhiteElo "2064"]
[BlackElo "2192"]
[TimeControl "180+1"]
[EndTime "15:38:21 PDT"]
[Termination "annacramling won by checkmate"]

1. d4 {[%clk 0:03:00.9]} 1... Nf6 {[%clk 0:02:59.9]} 2. c4 {[%clk 0:02:38.3]}
2... e6 {[%clk 0:02:59.6]} 3. Nf3 {[%clk 0:02:32.5]} 3... d5 {[%clk 0:02:59.3]}
4. g3 {[%clk 0:02:30.6]} 4... c6 {[%clk 0:02:58.1]} 5. Bg2 {[%clk 0:02:30.4]}
5... Bb4+ {[%clk 0:02:54.2]} 6. Bd2 {[%clk 0:02:29.3]} 6... Bd6 {[%clk
0:02:49.2]} 7. O-O {[%clk 0:02:27.7]} 7... Nbd7 {[%clk 0:02:35.4]} 8. Nc3 {[%clk
0:02:24.5]} 8... O-O {[%clk 0:02:33.9]} 9. Qc2 {[%clk 0:02:07.9]} 9... Re8
{[%clk 0:02:29.5]} 10. Rfd1 {[%clk 0:01:27]} 10... Qc7 {[%clk 0:02:25.8]} 11. e4
{[%clk 0:01:00.3]} 11... dxe4 {[%clk 0:02:25.3]} 12. Nxe4 {[%clk 0:01:00.5]}
12... Nxe4 {[%clk 0:02:24.2]} 13. Qxe4 {[%clk 0:01:00.6]} 13... c5 {[%clk
0:02:23.5]} 14. Ng5 {[%clk 0:00:55.4]} 14... Nf6 {[%clk 0:02:23.4]} 15. Qh4
{[%clk 0:00:53.6]} 15... cxd4 {[%clk 0:02:17]} 16. c5 {[%clk 0:00:28]} 16...
Bxc5 {[%clk 0:02:13.9]} 17. Rac1 {[%clk 0:00:25.3]} 17... Qb6 {[%clk 0:02:06.9]}
18. Ne4 {[%clk 0:00:20]} 18... Nxe4 {[%clk 0:02:04.9]} 19. Bxe4 {[%clk
0:00:20.3]} 19... f5 {[%clk 0:02:05.4]} 20. Bd3 {[%clk 0:00:18.5]} 20... e5
{[%clk 0:02:03.9]} 21. a3 {[%clk 0:00:16.3]} 21... e4 {[%clk 0:02:03.8]} 22.
Bc4+ {[%clk 0:00:16]} 22... Be6 {[%clk 0:02:04.4]} 23. b4 {[%clk 0:00:15.8]}
23... Bxc4 {[%clk 0:02:03.8]} 24. bxc5 {[%clk 0:00:15.2]} 24... Qe6 {[%clk
0:02:01.5]} 25. Bb4 {[%clk 0:00:13.8]} 25... e3 {[%clk 0:01:59]} 26. Rxd4 {[%clk
0:00:12.9]} 26... exf2+ {[%clk 0:01:58.8]} 27. Kg2 {[%clk 0:00:10.5]} 27...
f1=Q+ {[%clk 0:01:56.1]} 28. Rxf1 {[%clk 0:00:10.5]} 28... Bxf1+ {[%clk
0:01:54.9]} 29. Kxf1 {[%clk 0:00:10.6]} 29... Qe2+ {[%clk 0:01:54.2]} 30. Kg1
{[%clk 0:00:10.5]} 30... Qe3+ {[%clk 0:01:52.2]} 31. Kg2 {[%clk 0:00:10.4]}
31... g5 {[%clk 0:01:41.2]} 32. Qh5 {[%clk 0:00:03.9]} 32... Qxd4 {[%clk
0:01:40.6]} 33. Qxg5+ {[%clk 0:00:04.2]} 33... Qg7 {[%clk 0:01:41.3]} 34. Qxf5
{[%clk 0:00:04.1]} 34... Rf8 {[%clk 0:01:40.8]} 35. Qd5+ {[%clk 0:00:04.3]}
35... Qf7 {[%clk 0:01:41.2]} 36. Qg5+ {[%clk 0:00:04.3]} 36... Qg7 {[%clk
0:01:33.5]} 37. Qd5+ {[%clk 0:00:04.4]} 37... Rf7 {[%clk 0:01:34.1]} 38. Bd2
{[%clk 0:00:03.8]} 38... Qf6 {[%clk 0:01:26.1]} 39. Bf4 {[%clk 0:00:03.7]} 39...
Re8 {[%clk 0:01:24.9]} 40. Bd6 {[%clk 0:00:03.3]} 40... Qf1# {[%clk 0:01:24.4]}
0-1

[Event "Late-Titled-Tuesday-Blitz-October-10-2023"]
[Site "Chess.com"]
[Date "2023.10.10"]
[Round "9"]
[White "Elsa167"]
[Black "Alex_Sahakyan2006"]
[Result "0-1"]
[WhiteElo "2920"]
[BlackElo "2772"]
[TimeControl "180+1"]
[EndTime "15:38:22 PDT"]
[Termination "Alex_Sahakyan2006 won by resignation"]

1. d4 {[%clk 0:03:00.9]} 1... Nf6 {[%clk 0:02:59.3]} 2. c4 {[%clk 0:03:01.1]}
2... c5 {[%clk 0:02:58.3]} 3. d5 {[%clk 0:03:01.4]} 3... g6 {[%clk 0:02:57.7]}
4. Nc3 {[%clk 0:03:01.2]} 4... Bg7 {[%clk 0:02:58]} 5. e4 {[%clk 0:03:01.9]}
5... d6 {[%clk 0:02:58.3]} 6. f3 {[%clk 0:03:01]} 6... O-O {[%clk 0:02:58.4]} 7.
Bg5 {[%clk 0:03:01.6]} 7... e6 {[%clk 0:02:57.7]} 8. Qd2 {[%clk 0:03:01.8]} 8...
exd5 {[%clk 0:02:58]} 9. cxd5 {[%clk 0:03:02.7]} 9... Re8 {[%clk 0:02:58.1]} 10.
Be2 {[%clk 0:03:00.7]} 10... Na6 {[%clk 0:02:57.5]} 11. h4 {[%clk 0:02:55]}
11... Rb8 {[%clk 0:02:34]} 12. h5 {[%clk 0:02:53.4]} 12... Nc7 {[%clk
0:02:34.4]} 13. hxg6 {[%clk 0:02:45.5]} 13... fxg6 {[%clk 0:02:35.3]} 14. a4
{[%clk 0:02:29.4]} 14... a6 {[%clk 0:02:33.8]} 15. f4 {[%clk 0:01:58.3]} 15...
b5 {[%clk 0:02:21.4]} 16. axb5 {[%clk 0:01:57.8]} 16... axb5 {[%clk 0:01:58.1]}
17. e5 {[%clk 0:01:57.2]} 17... dxe5 {[%clk 0:01:57.4]} 18. d6 {[%clk
0:01:49.8]} 18... Ne6 {[%clk 0:01:55.3]} 19. fxe5 {[%clk 0:01:40]} 19... Nxg5
{[%clk 0:01:45.8]} 20. Qxg5 {[%clk 0:01:40.9]} 20... b4 {[%clk 0:01:45.2]} 21.
exf6 {[%clk 0:01:15.8]} 21... bxc3 {[%clk 0:01:20.8]} 22. bxc3 {[%clk
0:00:47.6]} 22... Bxf6 {[%clk 0:01:07.3]} 23. Qh6 {[%clk 0:00:46.2]} 23... Rb7
{[%clk 0:00:57.3]} 24. Rd1 {[%clk 0:00:39.4]} 24... Rf7 {[%clk 0:00:44.6]} 25.
Nf3 {[%clk 0:00:39]} 25... Ba6 {[%clk 0:00:44.7]} 26. Rd2 {[%clk 0:00:17.8]}
26... Bxc3 {[%clk 0:00:43.4]} 0-1

[Event "Late-Titled-Tuesday-Blitz-October-10-2023"]
[Site "Chess.com"]
[Date "2023.10.10"]
[Round "9"]
[White "GMJustin"]
[Black "tylityli"]
[Result "0-1"]
[WhiteElo "2183"]
[BlackElo "2341"]
[TimeControl "180+1"]
[EndTime "15:38:30 PDT"]
[Termination "tylityli won on time"]

1. d4 {[%clk 0:02:50.7]} 1... Nf6 {[%clk 0:02:59.4]} 2. c4 {[%clk 0:02:49.8]}
2... e6 {[%clk 0:02:59.3]} 3. Nc3 {[%clk 0:02:48.3]} 3... Bb4 {[%clk 0:02:59.4]}
4. Bg5 {[%clk 0:02:39.7]} 4... h6 {[%clk 0:02:58.8]} 5. Bh4 {[%clk 0:02:36.7]}
5... g5 {[%clk 0:02:58.7]} 6. Bg3 {[%clk 0:02:34.7]} 6... Ne4 {[%clk 0:02:58.8]}
7. Qc2 {[%clk 0:02:11.9]} 7... f5 {[%clk 0:02:58.3]} 8. Be5 {[%clk 0:01:54.9]}
8... Rg8 {[%clk 0:02:53.8]} 9. f3 {[%clk 0:01:51.2]} 9... Nxc3 {[%clk
0:02:50.1]} 10. bxc3 {[%clk 0:01:50.2]} 10... Be7 {[%clk 0:02:45.1]} 11. Bg3
{[%clk 0:01:31.2]} 11... f4 {[%clk 0:02:39.8]} 12. Bf2 {[%clk 0:01:30.2]} 12...
d6 {[%clk 0:02:36.1]} 13. Qh7 {[%clk 0:01:25.3]} 13... Kd7 {[%clk 0:02:30.1]}
14. Qxh6 {[%clk 0:01:10.2]} 14... Qf8 {[%clk 0:02:27.7]} 15. Qxf8 {[%clk
0:01:05]} 15... Bxf8 {[%clk 0:02:26.9]} 16. e3 {[%clk 0:00:59.2]} 16... e5
{[%clk 0:02:26]} 17. h4 {[%clk 0:00:48]} 17... g4 {[%clk 0:02:22.8]} 18. exf4
{[%clk 0:00:23.7]} 18... exf4 {[%clk 0:02:21.9]} 19. fxg4 {[%clk 0:00:21.8]}
19... Rxg4 {[%clk 0:02:21.1]} 20. Nf3 {[%clk 0:00:21.1]} 20... Bh6 {[%clk
0:02:13.8]} 21. h5 {[%clk 0:00:17]} 21... Nc6 {[%clk 0:02:09.8]} 22. O-O-O
{[%clk 0:00:14]} 22... Ke7 {[%clk 0:02:05]} 23. Kb2 {[%clk 0:00:12.6]} 23... Bf5
{[%clk 0:02:01.5]} 24. Re1+ {[%clk 0:00:12.4]} 24... Kd7 {[%clk 0:01:51.6]} 25.
Nh4 {[%clk 0:00:12.2]} 25... Bh7 {[%clk 0:01:49.3]} 26. Be2 {[%clk 0:00:10.7]}
26... Rgg8 {[%clk 0:01:41]} 27. Bf3 {[%clk 0:00:10.5]} 27... Rae8 {[%clk
0:01:39.6]} 28. Rxe8 {[%clk 0:00:06.6]} 28... Rxe8 {[%clk 0:01:38.9]} 29. Re1
{[%clk 0:00:04.5]} 29... Rg8 {[%clk 0:01:35]} 30. Be4 {[%clk 0:00:02.9]} 30...
Bxe4 {[%clk 0:01:32]} 31. Rxe4 {[%clk 0:00:02.9]} 31... Ne7 {[%clk 0:01:30.4]}
32. Be1 {[%clk 0:00:02.2]} 32... Rg4 {[%clk 0:01:27.1]} 33. Rxe7+ {[%clk
0:00:01.6]} 33... Kxe7 {[%clk 0:01:25.1]} 34. Nf5+ {[%clk 0:00:02.1]} 34... Kf6
{[%clk 0:01:23.6]} 35. Nxh6 {[%clk 0:00:02.4]} 35... Rxg2+ {[%clk 0:01:23]} 36.
Kc1 {[%clk 0:00:02.5]} 36... Kg5 {[%clk 0:01:21.4]} 37. Nf7+ {[%clk 0:00:02.1]}
37... Kxh5 {[%clk 0:01:20.9]} 38. Kd1 {[%clk 0:00:01.9]} 38... Rxa2 {[%clk
0:01:19.9]} 39. Nd8 {[%clk 0:00:01.6]} 39... b6 {[%clk 0:01:19.2]} 40. Bd2
{[%clk 0:00:01.2]} 40... f3 {[%clk 0:01:18.4]} 0-1

[Event "Late-Titled-Tuesday-Blitz-October-10-2023"]
[Site "Chess.com"]
[Date "2023.10.10"]
[Round "9"]
[White "Dannyyi"]
[Black "BardArtem"]
[Result "1-0"]
[WhiteElo "2341"]
[BlackElo "2744"]
[TimeControl "180+1"]
[EndTime "15:38:34 PDT"]
[Termination "Dannyyi won on time"]

1. e4 {[%clk 0:02:58.9]} 1... e5 {[%clk 0:02:59]} 2. Nf3 {[%clk 0:02:58.4]} 2...
Nc6 {[%clk 0:02:58.9]} 3. Bc4 {[%clk 0:02:58.6]} 3... Bc5 {[%clk 0:02:58.9]} 4.
d3 {[%clk 0:02:57]} 4... Nf6 {[%clk 0:02:59.3]} 5. O-O {[%clk 0:02:56.5]} 5...
h6 {[%clk 0:02:59.7]} 6. c3 {[%clk 0:02:55.7]} 6... a6 {[%clk 0:02:59.6]} 7. a4
{[%clk 0:02:54.8]} 7... d6 {[%clk 0:02:59.4]} 8. Re1 {[%clk 0:02:53.9]} 8... Ba7
{[%clk 0:02:59.6]} 9. Nbd2 {[%clk 0:02:52.9]} 9... Bd7 {[%clk 0:02:49.2]} 10.
Nf1 {[%clk 0:02:51.9]} 10... O-O {[%clk 0:02:49]} 11. h3 {[%clk 0:02:50.6]}
11... Ne7 {[%clk 0:02:47.5]} 12. d4 {[%clk 0:02:49.5]} 12... Ng6 {[%clk
0:02:47.1]} 13. Ng3 {[%clk 0:02:47.5]} 13... Re8 {[%clk 0:02:45.7]} 14. Qb3
{[%clk 0:02:37.7]} 14... d5 {[%clk 0:02:18.3]} 15. exd5 {[%clk 0:02:32.4]} 15...
exd4 {[%clk 0:02:18]} 16. Rxe8+ {[%clk 0:02:26.9]} 16... Nxe8 {[%clk 0:02:13.3]}
17. cxd4 {[%clk 0:02:25]} 17... Nd6 {[%clk 0:02:12.7]} 18. Bd3 {[%clk 0:02:24]}
18... Nh4 {[%clk 0:02:09.5]} 19. Nxh4 {[%clk 0:02:18.1]} 19... Qxh4 {[%clk
0:02:10.4]} 20. Be3 {[%clk 0:02:12.4]} 20... Bxd4 {[%clk 0:02:10]} 21. Re1
{[%clk 0:02:05.2]} 21... Re8 {[%clk 0:02:04.6]} 22. Nf1 {[%clk 0:02:03.9]} 22...
Bxe3 {[%clk 0:02:00.5]} 23. Rxe3 {[%clk 0:02:01.7]} 23... Rxe3 {[%clk
0:01:59.8]} 24. Nxe3 {[%clk 0:02:02.6]} 24... Qxa4 {[%clk 0:01:59.5]} 25. Qc3
{[%clk 0:01:58.5]} 25... Bb5 {[%clk 0:01:48.5]} 26. Bc2 {[%clk 0:01:50.1]} 26...
Qa1+ {[%clk 0:01:37.5]} 27. Kh2 {[%clk 0:01:49.3]} 27... c6 {[%clk 0:01:33]} 28.
Qe5 {[%clk 0:01:46.2]} 28... Qe1 {[%clk 0:00:08.5]} 29. Qxd6 {[%clk 0:01:40.7]}
29... g6 {[%clk 0:00:08.9]} 30. Qb8+ {[%clk 0:01:27.6]} 30... Kg7 {[%clk
0:00:06.8]} 31. Qe5+ {[%clk 0:01:27.1]} 31... Kh7 {[%clk 0:00:04.7]} 32. Qf6
{[%clk 0:01:18]} 32... Kg8 {[%clk 0:00:04.2]} 33. d6 {[%clk 0:01:14.5]} 33...
Qd2 {[%clk 0:00:03.7]} 34. Bb3 {[%clk 0:00:55.8]} 1-0

[Event "Late-Titled-Tuesday-Blitz-October-10-2023"]
[Site "Chess.com"]
[Date "2023.10.10"]
[Round "9"]
[White "martinez_95"]
[Black "nitpicker"]
[Result "1-0"]
[WhiteElo "2219"]
[BlackElo "2241"]
[TimeControl "180+1"]
[EndTime "15:38:43 PDT"]
[Termination "martinez_95 won on time"]

1. d4 {[%clk 0:02:38.4]} 1... Nf6 {[%clk 0:02:59.2]} 2. c4 {[%clk 0:02:38.8]}
2... e6 {[%clk 0:02:59]} 3. Nc3 {[%clk 0:02:39.2]} 3... Bb4 {[%clk 0:02:58.8]}
4. Nf3 {[%clk 0:02:39.3]} 4... d5 {[%clk 0:02:56.4]} 5. Bg5 {[%clk 0:02:36]}
5... Nbd7 {[%clk 0:02:54.6]} 6. e3 {[%clk 0:02:35.5]} 6... O-O {[%clk
0:02:52.1]} 7. Rc1 {[%clk 0:02:35.6]} 7... b6 {[%clk 0:02:49.5]} 8. Ne5 {[%clk
0:02:32]} 8... Bb7 {[%clk 0:02:43.7]} 9. cxd5 {[%clk 0:02:31.9]} 9... exd5
{[%clk 0:02:20.8]} 10. Nxd7 {[%clk 0:02:16.2]} 10... Qxd7 {[%clk 0:02:20.4]} 11.
Bxf6 {[%clk 0:02:16.3]} 11... gxf6 {[%clk 0:02:21.3]} 12. Bd3 {[%clk 0:02:14.5]}
12... Bc8 {[%clk 0:01:25.8]} 13. O-O {[%clk 0:01:59.7]} 13... f5 {[%clk
0:01:11.1]} 14. Qh5 {[%clk 0:01:41]} 14... Qe6 {[%clk 0:01:06.1]} 15. Ne2 {[%clk
0:01:36.2]} 15... Bd6 {[%clk 0:00:57.2]} 16. Ng3 {[%clk 0:01:29.6]} 16... Qg6
{[%clk 0:00:55.6]} 17. Qh4 {[%clk 0:01:25.2]} 17... c5 {[%clk 0:00:50.3]} 18. f4
{[%clk 0:01:13.5]} 18... Bd7 {[%clk 0:00:46.4]} 19. Nh5 {[%clk 0:01:12.8]} 19...
f6 {[%clk 0:00:44.1]} 20. Rf3 {[%clk 0:01:12.1]} 20... Kh8 {[%clk 0:00:38.8]}
21. Rg3 {[%clk 0:01:09.9]} 21... Qh6 {[%clk 0:00:39.3]} 22. Qh3 {[%clk
0:00:47.2]} 22... Be8 {[%clk 0:00:34.1]} 23. Ng7 {[%clk 0:00:42]} 23... Qxh3
{[%clk 0:00:31.9]} 24. gxh3 {[%clk 0:00:41.4]} 24... cxd4 {[%clk 0:00:22.6]} 25.
Nxf5 {[%clk 0:00:40.8]} 25... Bb8 {[%clk 0:00:14.4]} 26. Rc8 {[%clk 0:00:36.1]}
26... dxe3 {[%clk 0:00:05.6]} 27. Nh6 {[%clk 0:00:31.6]} 27... d4 {[%clk
0:00:01.9]} 28. Rxe8 {[%clk 0:00:31.1]} 1-0

[Event "Late-Titled-Tuesday-Blitz-October-10-2023"]
[Site "Chess.com"]
[Date "2023.10.10"]
[Round "9"]
[White "PawnEatingZombie"]
[Black "howitzer14"]
[Result "0-1"]
[WhiteElo "2204"]
[BlackElo "2972"]
[TimeControl "180+1"]
[EndTime "15:38:46 PDT"]
[Termination "howitzer14 won by checkmate"]

1. e4 {[%clk 0:02:57.1]} 1... c5 {[%clk 0:02:54.4]} 2. c3 {[%clk 0:02:56.7]}
2... e5 {[%clk 0:02:45.7]} 3. Bc4 {[%clk 0:02:50.6]} 3... Nf6 {[%clk 0:02:44.2]}
4. Nf3 {[%clk 0:02:42.9]} 4... Nc6 {[%clk 0:02:38.5]} 5. O-O {[%clk 0:02:34.1]}
5... Nxe4 {[%clk 0:02:19.9]} 6. Re1 {[%clk 0:02:31.8]} 6... d5 {[%clk
0:02:19.7]} 7. d4 {[%clk 0:02:28.4]} 7... cxd4 {[%clk 0:01:42.4]} 8. cxd4 {[%clk
0:02:27.9]} 8... dxc4 {[%clk 0:01:40]} 9. Rxe4 {[%clk 0:02:26.3]} 9... f5 {[%clk
0:01:35.3]} 10. Nxe5 {[%clk 0:02:10.2]} 10... fxe4 {[%clk 0:01:34.7]} 11. Qh5+
{[%clk 0:02:09.8]} 11... g6 {[%clk 0:01:35]} 12. Nxg6 {[%clk 0:02:09.8]} 12...
hxg6 {[%clk 0:01:26.5]} 13. Qxg6+ {[%clk 0:02:01]} 13... Kd7 {[%clk 0:01:26.1]}
14. Bf4 {[%clk 0:01:52.3]} 14... Qe8 {[%clk 0:01:01]} 15. Qf6 {[%clk 0:01:16.6]}
15... Be7 {[%clk 0:00:44.8]} 16. Qf5+ {[%clk 0:01:15.5]} 16... Kd8 {[%clk
0:00:44.7]} 17. Qxe4 {[%clk 0:01:01.5]} 17... Bf6 {[%clk 0:00:39.3]} 18. Qd5+
{[%clk 0:00:48.8]} 18... Bd7 {[%clk 0:00:29]} 19. Nc3 {[%clk 0:00:47.8]} 19...
Qe6 {[%clk 0:00:28.5]} 20. Qb5 {[%clk 0:00:45.8]} 20... Nxd4 {[%clk 0:00:18.7]}
21. Qxb7 {[%clk 0:00:44.5]} 21... Qc6 {[%clk 0:00:17.3]} 22. Bc7+ {[%clk
0:00:38.9]} 22... Ke8 {[%clk 0:00:14.9]} 23. Re1+ {[%clk 0:00:38.5]} 23... Kf7
{[%clk 0:00:15]} 24. Qb4 {[%clk 0:00:13.9]} 24... Qxc7 {[%clk 0:00:14.9]} 25.
Nd5 {[%clk 0:00:11.4]} 25... Qxh2+ {[%clk 0:00:14.6]} 26. Kf1 {[%clk 0:00:11]}
26... Qh1# {[%clk 0:00:15.5]} 0-1

[Event "Late-Titled-Tuesday-Blitz-October-10-2023"]
[Site "Chess.com"]
[Date "2023.10.10"]
[Round "9"]
[White "Zhigalko_Sergei"]
[Black "lamomiajunior"]
[Result "1-0"]
[WhiteElo "2908"]
[BlackElo "2750"]
[TimeControl "180+1"]
[EndTime "15:38:53 PDT"]
[Termination "Zhigalko_Sergei won by resignation"]

1. e4 {[%clk 0:03:00.9]} 1... c6 {[%clk 0:02:58.6]} 2. d4 {[%clk 0:03:01]} 2...
d5 {[%clk 0:02:59.5]} 3. e5 {[%clk 0:03:01.5]} 3... Bf5 {[%clk 0:02:59.7]} 4.
Nf3 {[%clk 0:03:02]} 4... e6 {[%clk 0:03:00.3]} 5. Be2 {[%clk 0:03:02.6]} 5...
c5 {[%clk 0:03:01]} 6. Be3 {[%clk 0:03:02.3]} 6... cxd4 {[%clk 0:02:59.3]} 7.
Nxd4 {[%clk 0:03:02.4]} 7... Ne7 {[%clk 0:03:00]} 8. Nd2 {[%clk 0:03:02.7]} 8...
Nbc6 {[%clk 0:02:59.5]} 9. N2f3 {[%clk 0:03:03.2]} 9... Bg4 {[%clk 0:02:59.1]}
10. O-O {[%clk 0:03:03.3]} 10... Bxf3 {[%clk 0:02:59.7]} 11. Nxf3 {[%clk
0:03:04.2]} 11... Ng6 {[%clk 0:02:55.7]} 12. c4 {[%clk 0:03:04.1]} 12... dxc4
{[%clk 0:02:50.1]} 13. Bxc4 {[%clk 0:02:50.5]} 13... Be7 {[%clk 0:02:47.6]} 14.
Bb5 {[%clk 0:02:48]} 14... O-O {[%clk 0:02:44.5]} 15. Bxc6 {[%clk 0:02:48.1]}
15... bxc6 {[%clk 0:02:45.4]} 16. Qc2 {[%clk 0:02:33.2]} 16... Qd5 {[%clk
0:02:36.2]} 17. Rfd1 {[%clk 0:02:31.2]} 17... Qb5 {[%clk 0:02:36.6]} 18. a4
{[%clk 0:02:13.2]} 18... Qa6 {[%clk 0:02:36.7]} 19. Rd7 {[%clk 0:02:09.2]} 19...
Bb4 {[%clk 0:02:34]} 20. Qe4 {[%clk 0:01:53.2]} 20... c5 {[%clk 0:02:22.7]} 21.
h4 {[%clk 0:01:51.9]} 21... Rad8 {[%clk 0:02:17.7]} 22. Rc7 {[%clk 0:01:22.7]}
22... Qb6 {[%clk 0:02:09.8]} 23. Rb7 {[%clk 0:01:18.6]} 23... Qa6 {[%clk
0:02:07.7]} 24. h5 {[%clk 0:01:16.2]} 24... Nh8 {[%clk 0:01:56.6]} 25. Ng5
{[%clk 0:01:08.9]} 25... g6 {[%clk 0:01:56.7]} 26. h6 {[%clk 0:00:53.3]} 26...
Qd3 {[%clk 0:01:46.7]} 27. Qxd3 {[%clk 0:00:48.4]} 27... Rxd3 {[%clk 0:01:47.6]}
28. Ne4 {[%clk 0:00:49.1]} 28... Rfd8 {[%clk 0:01:37.8]} 29. Nf6+ {[%clk
0:00:48.7]} 29... Kf8 {[%clk 0:01:38.7]} 30. Nxh7+ {[%clk 0:00:49.6]} 30... Kg8
{[%clk 0:01:39.4]} 31. Nf6+ {[%clk 0:00:49.3]} 31... Kf8 {[%clk 0:01:40.3]} 32.
Rxa7 {[%clk 0:00:30]} 32... g5 {[%clk 0:01:28.3]} 33. Bxg5 {[%clk 0:00:25.3]}
33... Ng6 {[%clk 0:01:28.1]} 34. Nh7+ {[%clk 0:00:24.4]} 34... Kg8 {[%clk
0:01:28.8]} 35. Bxd8 {[%clk 0:00:24.8]} 35... Kxh7 {[%clk 0:01:29.6]} 36. Rxf7+
{[%clk 0:00:16.3]} 36... Kxh6 {[%clk 0:01:30]} 37. Bf6 {[%clk 0:00:14.5]} 37...
Nf4 {[%clk 0:01:19.8]} 38. Bg7+ {[%clk 0:00:11.8]} 38... Kg5 {[%clk 0:01:20]}
39. Bh6+ {[%clk 0:00:11.6]} 39... Kxh6 {[%clk 0:01:20.3]} 40. Rxf4 {[%clk
0:00:12.3]} 40... Rd2 {[%clk 0:01:19.4]} 41. a5 {[%clk 0:00:11.8]} 41... Rd7
{[%clk 0:01:18.2]} 42. a6 {[%clk 0:00:11.5]} 42... Kg5 {[%clk 0:01:18.5]} 43.
Rf6 {[%clk 0:00:10.5]} 43... Ra7 {[%clk 0:01:16.9]} 44. Rxe6 {[%clk 0:00:10.6]}
44... Kf5 {[%clk 0:01:17.8]} 45. Re8 {[%clk 0:00:10.5]} 45... c4 {[%clk
0:01:17.5]} 46. Rb8 {[%clk 0:00:09.7]} 46... Bc5 {[%clk 0:01:17.6]} 47. Rb7
{[%clk 0:00:08.7]} 47... Ra8 {[%clk 0:01:18.5]} 48. Ra5 {[%clk 0:00:04.8]} 48...
Bd4 {[%clk 0:01:18.1]} 49. a7 {[%clk 0:00:05.2]} 49... Ke4 {[%clk 0:01:18.4]}
50. Rb8 {[%clk 0:00:04.7]} 50... Rxa7 {[%clk 0:01:18.1]} 51. Rxa7 {[%clk
0:00:05.1]} 51... Bxa7 {[%clk 0:01:19]} 52. Rb7 {[%clk 0:00:05.6]} 52... Bd4
{[%clk 0:01:19.4]} 53. e6 {[%clk 0:00:06.1]} 1-0